bitfinex/quotes_BTCUSD_20260310
["timestamp","ask_amount","ask_price","bid_price","bid_amount"]
[1773130889321,0.07048252,70940.0,70926.0,0.55182196]
[1773130889520,0.07048252,70940.0,70929.0,0.00144]
[1773130890354,0.03,70939.0,70929.0,0.00144]
[1773130890502,0.03,70937.0,70929.0,0.0719322]
[1773130890702,0.07191514,70948.0,70929.0,0.0719322]
[1773130890926,0.07047352,70949.0,70935.0,0.00022]
[1773130891129,0.04869909,70946.0,70936.0,0.00144]
[1773130891470,0.07047352,70949.0,70927.0,0.07049421]
[1773130891471,0.03,70941.0,70937.0,0.00144]
[1773130891679,0.07869909,70939.0,70929.0,0.07049228]
[1773130891824,0.03,70939.0,70930.0,0.00144]
[1773130892219,0.03,70939.0,70931.0,0.00144]
[1773130892447,0.03,70937.0,70927.0,0.00022]
[1773130892649,0.58880246,70942.0,70927.0,0.00022]
[1773130892650,0.03,70935.0,70927.0,0.07071428]
[1773130892852,0.04869909,70946.0,70928.0,0.55326196]
[1773130893076,0.04869909,70944.0,70928.0,0.00144]
[1773130893253,0.58880246,70941.0,70929.0,0.00144]
[1773130893450,0.58254126,70938.0,70930.0,0.00144]
[1773130893652,0.03,70934.0,70927.0,0.00022]
[1773130893876,0.03,70928.0,70926.0,0.00144]
[1773130894077,0.66124035,70928.0,70927.0,0.00144]
[1773130894506,0.68303528,70928.0,70924.0,0.00144]
[1773130894761,0.07869909,70925.0,70924.0,0.00144]
[1773130894919,0.03,70925.0,70924.0,0.00144]
[1773130895136,0.04869909,70928.0,70924.0,0.00144]
[1773130895347,0.11919324,70928.0,70924.0,0.00144]
[1773130895660,0.04869909,70928.0,70924.0,0.00144]
[1773130895789,0.03,70927.0,70924.0,0.00144]
[1773130896217,0.1191853,70936.0,70924.0,0.00144]
[1773130896619,0.1191853,70936.0,70925.0,0.070497]
[1773130896826,0.03,70935.0,70925.0,0.070497]
[1773130897024,0.04869909,70941.0,70925.0,0.070497]
[1773130897252,0.04889909,70951.0,70930.0,0.15906396]
[1773130897448,0.0002,70951.0,70931.0,0.56231965]
[1773130897873,0.0302,70951.0,70931.0,0.56087965]
[1773130898071,0.0302,70951.0,70933.0,0.55978462]
[1773130898267,0.03,70948.0,70933.0,0.55978462]
[1773130898644,0.07046795,70955.0,70933.0,0.55978462]
[1773130898645,0.07067773,70975.0,70935.0,0.04879928]
[1773130898886,0.04524774,70966.0,70938.0,0.55978462]
[1773130899041,0.627789,70965.0,70941.0,0.04879928]
[1773130899249,0.627789,70965.0,70943.0,0.04879928]
[1773130899473,0.03,70964.0,70944.0,0.60892869]
[1773130899686,0.03,70964.0,70946.0,0.55978462]
[1773130899930,0.03,70964.0,70946.0,0.60892869]
[1773130900282,0.07044857,70974.0,70950.0,0.15906396]
[1773130900283,0.07045145,70971.0,70950.0,0.15906396]
[1773130900509,0.04610195,70972.0,70940.0,0.31812792]
[1773130900510,0.07065091,70972.0,70954.0,0.04914407]
[1773130900712,0.0002,70972.0,70957.0,0.55978462]
[1773130901053,0.0002,70972.0,70957.0,0.60892869]
[1773130901177,0.07065068,70972.0,70957.0,0.60892869]
[1773130901379,0.07065068,70972.0,70957.0,0.04914407]
[1773130901380,0.03,70971.0,70957.0,0.04914407]
[1773130901779,0.03,70971.0,70956.0,0.0704662]
[1773130901999,0.03,70971.0,70957.0,0.00144]
[1773130902720,0.1004521,70971.0,70958.0,0.07046421]
[1773130903484,0.1004521,70971.0,70959.0,0.00144]
[1773130903685,0.1004521,70971.0,70958.0,0.07046421]
[1773130903686,0.1004521,70971.0,70958.0,0.00694953]
[1773130903885,0.1004521,70971.0,70924.0,0.33860883]
[1773130903886,0.03,70965.0,70949.0,0.00144]
[1773130904253,0.03,70963.0,70945.0,0.07047647]
[1773130904468,0.03,70959.0,70950.0,0.00144]
[1773130904672,0.00023,70975.0,70954.0,0.07046819]
[1773130904843,0.00023,70975.0,70956.0,0.04914407]
[1773130905062,0.00023,70975.0,70957.0,0.55978462]
[1773130905288,0.0002,70971.0,70957.0,0.55978462]
[1773130905419,0.00023,70975.0,70957.0,0.55978462]
[1773130905621,0.00023,70975.0,70959.0,0.55978462]
[1773130906201,0.03,70974.0,70959.0,0.55978462]
[1773130906408,0.03,70972.0,70954.0,0.07046819]
[1773130906573,0.03,70964.0,70960.0,0.00144]
[1773130906794,0.03,70962.0,70960.0,0.00144]
[1773130907202,0.07590195,70962.0,70960.0,0.00144]
[1773130907422,0.03,70962.0,70961.0,0.00144]
[1773130908300,0.07590195,70962.0,70954.0,0.0704662]
[1773130908543,0.03,70962.0,70955.0,0.00144]
[1773130908743,0.03,70961.0,70956.0,0.0704662]
[1773130909454,0.07045204,70971.0,70956.0,0.0704662]
[1773130909455,0.11658016,70975.0,70956.0,0.0704662]
[1773130909845,0.03,70974.0,70957.0,0.55978462]
[1773130910244,0.03,70974.0,70964.0,0.00562]
[1773130910450,0.03,70974.0,70964.0,0.00706]
[1773130910794,0.03023,70975.0,70965.0,0.07045726]
[1773130911214,0.03023,70975.0,70965.0,0.63528078]
[1773130911437,0.07043921,70984.0,70965.0,0.63528078]
[1773130911804,0.03,70986.0,70965.0,0.6833501]
[1773130912006,0.04619724,70979.0,70966.0,0.00144]
[1773130912134,0.0002,70974.0,70965.0,0.07045726]
[1773130912334,0.0002,70974.0,70966.0,0.00144]
[1773130912533,0.0002,70974.0,70965.0,0.07045726]
[1773130912760,0.0002,70974.0,70966.0,0.00144]
[1773130912960,0.03,70975.0,70967.0,0.56482352]
[1773130913160,0.07043543,70987.0,70967.0,0.56482352]
[1773130913362,0.59265258,70985.0,70965.0,0.07045726]
[1773130913676,0.07043543,70987.0,70964.0,0.07751764]
[1773130913677,0.04619724,70980.0,70964.0,0.07751764]
[1773130913893,0.04619724,70978.0,70964.0,0.07751764]
[1773130914061,0.59265258,70977.0,70964.0,0.07751764]
[1773130914263,0.03,70976.0,70964.0,0.07751764]
[1773130914469,0.03,70974.0,70964.0,0.07751764]
[1773130914671,0.07619724,70974.0,70964.0,0.07751764]
[1773130914907,0.10044882,70974.0,70964.0,0.07751764]
[1773130915075,0.03,70972.0,70964.0,0.07751764]
[1773130915479,0.03,70972.0,70965.0,0.00144]
[1773130915684,0.03,70968.0,70961.0,0.07046123]
[1773130915882,0.03,70966.0,70961.0,0.00144]
[1773130916083,0.03,70962.0,70961.0,0.00144]
[1773130916498,0.03,70962.0,70958.0,0.07046343]
[1773130916698,0.03,70962.0,70959.0,0.00144]
[1773130917216,0.07188815,70975.0,70959.0,0.00144]
[1773130917217,0.03,70961.0,70959.0,0.00144]
[1773130917471,0.03,70961.0,70959.0,0.07190312]
[1773130917656,0.03,70961.0,70959.0,0.07046312]
[1773130917866,0.03,70961.0,70958.0,0.07046341]
[1773130918091,0.03,70961.0,70950.0,0.07070201]
[1773130918092,0.03,70959.0,70951.0,0.07047117]
[1773130918211,0.03,70958.0,70952.0,0.00144]
[1773130918630,0.0718934,70969.0,70952.0,0.00144]
[1773130918833,0.0718934,70969.0,70953.0,0.56482352]
[1773130919236,0.03,70969.0,70954.0,0.07046819]
[1773130919856,0.0704523,70970.0,70954.0,0.07046819]
[1773130919857,0.59265258,70966.0,70954.0,0.07046819]
[1773130920068,0.59265258,70966.0,70947.0,0.07047474]
[1773130920069,0.07619724,70963.0,70955.0,0.00144]
[1773130920365,0.07619724,70963.0,70956.0,0.00144]
[1773130920569,0.07619724,70963.0,70957.0,0.00144]
[1773130920981,0.03,70962.0,70957.0,0.00144]
[1773130921194,0.03,70962.0,70958.0,0.07046421]
[1773130921655,0.0704523,70970.0,70958.0,0.07046421]
[1773130922270,0.03,70969.0,70958.0,0.07046421]
[1773130923274,0.10045364,70969.0,70956.0,0.07046533]
[1773130923477,0.03,70965.0,70957.0,0.00144]
[1773130923657,0.03,70965.0,70958.0,0.00144]
[1773130924547,0.03,70967.0,70958.0,0.00144]
[1773130924758,0.04619724,70962.0,70940.0,0.63080433]
[1773130924964,0.07045364,70969.0,70940.0,0.0704811]
[1773130924965,0.03,70957.0,70940.0,0.0704811]
[1773130925210,0.11664755,70973.0,70945.0,0.04806932]
[1773130925399,0.04619724,70973.0,70952.0,0.56032323]
[1773130925701,0.11664688,70973.0,70955.0,0.04806932]
[1773130925872,0.04619724,70972.0,70955.0,0.04806932]
[1773130926085,0.03,70971.0,70955.0,0.04806932]
[1773130926312,0.03,70971.0,70956.0,0.00144]
[1773130926648,0.07619724,70971.0,70956.0,0.00144]
[1773130927253,0.07619724,70971.0,70957.0,0.07046521]
[1773130927480,0.14664867,70971.0,70957.0,0.07046521]
[1773130927705,0.07619724,70971.0,70957.0,0.07046521]
[1773130927876,0.10044932,70973.0,70957.0,0.07046521]
[1773130928047,0.04619724,70972.0,70958.0,0.00144]
[1773130928244,0.03,70969.0,70958.0,0.00144]
[1773130928452,0.07619724,70969.0,70958.0,0.00144]
[1773130929509,0.07619724,70969.0,70959.0,0.07046322]
[1773130929710,0.03,70968.0,70959.0,0.07046322]
[1773130930441,0.03,70968.0,70960.0,0.00144]
[1773130930639,0.03,70966.0,70960.0,0.00144]
[1773130930892,0.03,70966.0,70958.0,0.07046365]
[1773130931188,0.07870844,70966.0,70961.0,0.00144]
[1773130931795,0.07870844,70966.0,70959.0,0.07046263]
[1773130932021,0.03,70965.0,70960.0,0.00144]
[1773130932374,0.07044974,70973.0,70960.0,0.00144]
[1773130932585,0.07064871,70974.0,70960.0,0.00144]
[1773130933098,0.03,70973.0,70960.0,0.00144]
[1773130933668,0.03,70973.0,70961.0,0.07046123]
[1773130933867,0.10044949,70973.0,70961.0,0.07046123]
[1773130934269,0.03,70971.0,70961.0,0.07046123]
[1773130934671,0.07870844,70971.0,70961.0,0.07046123]
[1773130935239,0.03,70967.0,70960.0,0.00144]
[1773130935393,0.03,70967.0,70960.0,0.07190192]
[1773130935597,0.10045534,70967.0,70957.0,0.16678603]
[1773130935798,0.10045534,70967.0,70952.0,0.07190991]
[1773130935799,0.61047954,70961.0,70952.0,0.07190991]
[1773130936005,0.03,70959.0,70952.0,0.07046991]
[1773130936184,0.04870844,70954.0,70953.0,0.00144]
[1773130936394,0.07870844,70954.0,70953.0,0.00144]
[1773130936599,0.03,70954.0,70951.0,0.07047017]
[1773130936827,0.58047954,70959.0,70952.0,0.03144]
[1773130937161,0.07045534,70967.0,70943.0,0.07069832]
[1773130937162,0.58047954,70957.0,70943.0,0.00022]
[1773130937351,0.58047954,70953.0,70944.0,0.00144]
[1773130937550,0.04870844,70951.0,70944.0,0.00144]
[1773130937796,0.03,70950.0,70944.0,0.00144]
[1773130938003,0.03,70950.0,70944.0,0.07191806]
[1773130938340,0.11917683,70954.0,70944.0,0.00144]
[1773130938341,0.07046868,70954.0,70944.0,0.00144]
[1773130938586,0.58047954,70950.0,70936.0,0.00562]
[1773130938804,0.03,70943.0,70937.0,0.00144]
[1773130939142,0.03,70941.0,70938.0,0.00144]
[1773130939349,0.11135425,70978.0,70936.0,0.07610567]
[1773130939350,0.65093283,70969.0,70937.0,0.56032323]
[1773130939553,0.58047954,70967.0,70940.0,0.04765635]
[1773130939754,0.04870844,70962.0,70943.0,0.56032323]
[1773130940231,0.03001267,70963.0,70945.0,0.56032323]
[1773130940232,0.03144,70961.0,70945.0,0.56032323]
[1773130940393,0.03144,70961.0,70947.0,0.56032323]
[1773130941218,0.00144,70960.0,70947.0,0.60797958]
[1773130941468,0.03,70957.0,70943.0,0.00022]
[1773130941687,0.03,70957.0,70944.0,0.07047812]
[1773130941880,0.00144,70956.0,70944.0,0.07047812]
[1773130942039,0.00144,70955.0,70944.0,0.07047812]
[1773130942207,0.00144,70955.0,70943.0,0.63102135]
[1773130942208,0.00144,70955.0,70943.0,0.07069858]
[1773130942413,0.03,70953.0,70943.0,0.07069858]
[1773130943107,0.03,70949.0,70936.0,0.07610534]
[1773130943302,0.03,70947.0,70936.0,0.07610534]
[1773130943604,0.00144,70946.0,70936.0,0.07610534]
[1773130943848,0.00144,70946.0,70936.0,0.00562]
[1773130943849,0.03,70943.0,70936.0,0.00562]
[1773130944028,0.07870844,70941.0,70936.0,0.00562]
[1773130944328,0.00144,70940.0,70936.0,0.00562]
[1773130944533,0.00144,70940.0,70925.0,0.56055323]
[1773130944732,0.03,70938.0,70928.0,0.07071346]
[1773130944960,0.07870844,70938.0,70928.0,0.07071363]
[1773130945413,0.03,70936.0,70928.0,0.67869321]
[1773130945616,0.05014844,70940.0,70928.0,0.07071363]
[1773130946376,0.03,70939.0,70928.0,0.07071363]
[1773130946910,0.04870844,70938.0,70928.0,0.07071363]
[1773130947136,0.03144,70937.0,70928.0,0.07071363]
[1773130947407,0.03,70937.0,70928.0,0.07071363]
[1773130947613,0.00144,70936.0,70928.0,0.07071363]
[1773130947969,0.00144,70936.0,70928.0,0.00022]
[1773130948176,0.69965574,70955.0,70931.0,0.04765635]
[1773130948377,0.00144,70954.0,70935.0,0.04765635]
[1773130948678,0.00144,70953.0,70939.0,0.56032323]
[1773130949272,0.00144,70952.0,70939.0,0.56032323]
[1773130949514,0.0002,70954.0,70939.0,0.56032323]
[1773130949515,0.00144,70951.0,70939.0,0.56032323]
[1773130949691,0.0002,70954.0,70939.0,0.56032323]
[1773130949901,0.00144,70950.0,70939.0,0.56032323]
[1773130950107,0.00144,70950.0,70940.0,0.07048209]
[1773130950495,0.00144,70950.0,70940.0,0.63080532]
[1773130951498,0.00144,70950.0,70940.0,0.07048209]
[1773130952141,0.03,70953.0,70938.0,0.07048209]
[1773130952444,0.00144,70951.0,70938.0,0.07048209]
[1773130952654,0.03,70953.0,70938.0,0.07048209]
[1773130952869,0.07045139,70971.0,70940.0,0.04671041]
[1773130953067,0.07045139,70971.0,70944.0,0.04671041]
[1773130953068,0.05014844,70966.0,70944.0,0.04671041]
[1773130953265,0.00144,70965.0,70947.0,0.56032323]
[1773130953490,0.00144,70965.0,70948.0,0.60703364]
[1773130953617,0.05014844,70965.0,70948.0,0.60703364]
[1773130953817,0.03,70964.0,70948.0,0.60703364]
[1773130954482,0.03,70964.0,70949.0,0.07047315]
[1773130955174,0.03,70964.0,70950.0,0.59145566]
[1773130955373,0.03562,70964.0,70950.0,0.59145566]
[1773130955577,0.00144,70963.0,70951.0,0.04631722]
[1773130955778,0.00144,70962.0,70952.0,0.63757361]
[1773130956203,0.00144,70963.0,70952.0,0.63757361]
[1773130956340,0.00144,70963.0,70953.0,0.07046918]
[1773130957144,0.03,70962.0,70953.0,0.07046918]
[1773130957483,0.07870844,70962.0,70953.0,0.07046918]
[1773130958282,0.03,70961.0,70953.0,0.07046918]
[1773130958447,0.03,70961.0,70951.0,0.07046918]
[1773130959157,0.03,70961.0,70951.0,0.07032304]
[1773130959483,0.03,70960.0,70951.0,0.07032304]
[1773130959850,0.00144,70959.0,70951.0,0.07032304]
[1773130960283,0.03144,70959.0,70951.0,0.07032304]
[1773130960491,0.03144,70959.0,70948.0,0.07047216]
[1773130960989,0.03,70957.0,70947.0,0.07047514]
[1773130961336,0.00144,70959.0,70947.0,0.07047514]
[1773130961337,0.07500793,70955.0,70947.0,0.07047514]
[1773130961680,0.03,70953.0,70947.0,0.07047514]
[1773130961907,0.00144,70952.0,70947.0,0.07047514]
[1773130962112,0.07044285,70980.0,70949.0,0.04492478]
[1773130962315,0.00167,70975.0,70953.0,0.04492478]
[1773130962520,0.04500793,70974.0,70956.0,0.59145566]
[1773130962862,0.03,70973.0,70954.0,0.07190819]
[1773130963065,0.03,70969.0,70956.0,0.0447557]
[1773130963272,0.00167,70975.0,70960.0,0.0447557]
[1773130963473,0.00023,70975.0,70961.0,0.63621136]
[1773130963609,0.00144,70974.0,70961.0,0.63621136]
[1773130964029,0.03,70973.0,70956.0,0.04456216]
[1773130964313,0.03,70973.0,70959.0,0.63601782]
[1773130964528,0.07043147,70991.0,70961.0,0.59145566]
[1773130964745,0.07043147,70991.0,70960.0,0.2294828]
[1773130964746,0.04500793,70991.0,70972.0,0.59145566]
[1773130964972,0.04500793,70991.0,70974.0,0.59145566]
[1773130965188,0.03,70990.0,70974.0,0.63582423]
[1773130965400,0.00144,70985.0,70974.0,0.63582423]
[1773130965867,0.03,70990.0,70974.0,0.59145566]
[1773130966053,0.00144,71004.0,70982.0,0.04419175]
[1773130966236,0.00167,71000.0,70985.0,0.63564741]
[1773130966372,0.00167,71000.0,70987.0,0.07043543]
[1773130966575,0.00167,71000.0,70987.0,0.66189109]
[1773130967385,0.00023,71000.0,70987.0,0.70577699]
[1773130967574,0.00023,71000.0,70987.0,0.07028934]
[1773130968026,0.03,71001.0,70990.0,0.63529636]
[1773130968236,0.03,71001.0,70991.0,0.63379485]
[1773130968464,0.03,71001.0,70993.0,0.07042947]
[1773130968688,0.00144,71006.0,70994.0,0.59145566]
[1773130968875,0.07040194,71021.0,70995.0,0.59145566]
[1773130968876,0.04500793,71021.0,70995.0,0.59145566]
[1773130969107,0.04500793,71017.0,70995.0,0.59145566]
[1773130969322,0.04500793,71016.0,70993.0,0.66188513]
[1773130969548,0.0003423,71022.0,71002.0,0.04072182]
[1773130969762,0.03015,71029.0,71004.0,0.0406343]
[1773130969982,0.03015,71029.0,71007.0,0.59145566]
[1773130970197,0.00048,71018.0,71003.0,0.00144]
[1773130970462,0.03,71016.0,71003.0,0.00144]
[1773130970663,0.03,71016.0,71004.0,0.07041856]
[1773130971163,0.03,71016.0,71007.0,0.001]
[1773130971592,0.00144,71021.0,71007.0,0.001]
[1773130971788,0.0002,71016.0,71007.0,0.001]
[1773130972209,0.00015,71029.0,71008.0,0.59240154]
[1773130972414,0.04354181,71027.0,71008.0,0.00144]
[1773130972627,0.6142253,71026.0,71009.0,0.0704136]
[1773130972829,0.04354181,71027.0,71009.0,0.0704136]
[1773130972830,0.04354181,71021.0,71009.0,0.0704136]
[1773130973031,0.03,71020.0,71009.0,0.0704136]
[1773130973615,0.03,71018.0,71001.0,0.07042154]
[1773130973813,0.03,71016.0,71001.0,0.07186154]
[1773130974164,0.03,71016.0,71001.0,0.66426308]
[1773130974589,0.03,71016.0,71001.0,0.07186154]
[1773130974808,0.04354181,71027.0,71000.0,0.66305331]
[1773130975028,0.04354181,71023.0,71000.0,0.66305331]
[1773130975232,0.04354181,71019.0,71000.0,0.07065177]
[1773130975444,0.04354181,71017.0,71000.0,0.07065177]
[1773130975660,0.04354181,71015.0,71000.0,0.07065177]
[1773130975809,0.03,71011.0,71000.0,0.07065177]
[1773130976012,0.03,71011.0,70992.0,0.66845103]
[1773130976013,0.07354181,71005.0,70995.0,0.070427]
[1773130976398,0.03,71003.0,70995.0,0.070427]
[1773130976607,0.03,71003.0,70994.0,0.07042758]
[1773130976806,0.03,71003.0,70993.0,0.07042873]
[1773130977012,0.03,71001.0,70993.0,0.07042873]
[1773130977208,0.03,71001.0,70992.0,0.07605013]
[1773130977400,0.03,71001.0,70993.0,0.07042873]
[1773130977796,0.69679557,71000.0,70974.0,0.070448]
[1773130978035,0.69679557,71000.0,70976.0,0.07077792]
[1773130978036,0.04354181,70990.0,70976.0,0.07077792]
[1773130978233,0.03,70985.0,70976.0,0.07077792]
[1773130978453,0.00144,70984.0,70976.0,0.07077792]
[1773130978969,0.03,70982.0,70979.0,0.00022]
[1773130979123,0.07354181,70982.0,70979.0,0.00022]
[1773130979320,0.07354181,70982.0,70976.0,0.07077792]
[1773130979722,0.07354181,70982.0,70977.0,0.07044535]
[1773130979944,0.07354181,70982.0,70976.0,0.0003323]
[1773130980471,0.07354181,70982.0,70975.0,0.07067711]
[1773130980912,0.03,70982.0,70974.0,0.07044734]
[1773130981086,0.03,70980.0,70972.0,0.07045003]
[1773130981265,0.03,70978.0,70969.0,0.07045329]
[1773130981470,0.00144,70977.0,70969.0,0.07045329]
[1773130982310,0.00144,70976.0,70969.0,0.07045329]
[1773130982506,0.11396533,70999.0,70972.0,0.59240154]
[1773130982711,0.04498181,70998.0,70973.0,0.0382146]
[1773130982971,0.07042551,70997.0,70976.0,0.59240154]
[1773130983424,0.03,70996.0,70980.0,0.15902057]
[1773130983633,0.03,70996.0,70981.0,0.58919777]
[1773130984002,0.00144,70997.0,70980.0,0.15902057]
[1773130984264,0.0704149,71008.0,70984.0,0.58919777]
[1773130984412,0.00144,71007.0,70988.0,0.58919777]
[1773130984938,0.03,71010.0,70990.0,0.58919777]
[1773130985090,0.00144,71006.0,70990.0,0.58919777]
[1773130985289,0.03,71004.0,70989.0,0.07043344]
[1773130985656,0.07354181,71002.0,70989.0,0.07043344]
[1773130986436,0.03144,71001.0,70989.0,0.07043344]
[1773130986638,0.00144,71000.0,70989.0,0.07043344]
[1773130986814,0.00144,70999.0,70989.0,0.07043344]
[1773130988528,0.03,71002.0,70989.0,0.07043344]
[1773130988736,0.00144,71001.0,70989.0,0.65963121]
[1773130989161,0.00144,71001.0,70975.0,0.07067666]
[1773130989162,0.03,70992.0,70975.0,0.07067666]
[1773130989386,0.07354181,70990.0,70975.0,0.07067666]
[1773130989597,0.03,70988.0,70975.0,0.07067666]
[1773130990700,0.07309928,70986.0,70975.0,0.07067666]
[1773130992454,0.03,70985.0,70975.0,0.07067666]
[1773130993453,0.00144,70984.0,70975.0,0.07067666]
[1773130993656,0.00144,70984.0,70975.0,0.07089666]
[1773130993876,0.03,70989.0,70975.0,0.07089666]
[1773130994077,0.03,70987.0,70975.0,0.07089666]
[1773130994282,0.03,70987.0,70971.0,0.00144]
[1773130994283,0.04309928,70980.0,70969.0,0.07067242]
[1773130994480,0.03,70977.0,70969.0,0.07067242]
[1773130994684,0.00144,70976.0,70969.0,0.07067242]
[1773130994887,0.07043349,70989.0,70969.0,0.07067242]
[1773130994888,0.07043221,70991.0,70970.0,0.58919777]
[1773130995168,0.57577094,70990.0,70970.0,0.58919777]
[1773130995368,0.04309928,70987.0,70971.0,0.07045131]
[1773130995567,0.03144,70986.0,70971.0,0.07045131]
[1773130995997,0.03,70982.0,70971.0,0.07045131]
[1773130997720,0.07309928,70981.0,70970.0,0.07045131]
[1773130997925,0.00144,70980.0,70970.0,0.07045131]
[1773130998430,0.03,70979.0,70970.0,0.07045131]
[1773130999671,0.03,70976.0,70970.0,0.07045131]
[1773131000230,0.00144,70980.0,70970.0,0.07045131]
[1773131001356,0.00144,70980.0,70971.0,0.00022]
[1773131001994,0.00144,70980.0,70972.0,0.07045031]
[1773131003538,0.03,70977.0,70972.0,0.07045031]
[1773131003987,0.03144,70977.0,70972.0,0.07045031]
[1773131004549,0.00144,70977.0,70972.0,0.07045031]
[1773131005403,0.00144,70977.0,70971.0,0.0706711]
[1773131005404,0.03144,70977.0,70971.0,0.0706711]
[1773131006226,0.03,70973.0,70967.0,0.07115437]
[1773131006426,0.03,70973.0,70964.0,0.00562]
[1773131006594,0.03,70967.0,70951.0,0.16589002]
[1773131006803,0.03,70967.0,70950.0,0.00023]
[1773131006804,0.03,70961.0,70950.0,0.00023]
[1773131007050,0.03,70953.0,70940.0,0.00022]
[1773131007218,0.03,70949.0,70938.0,0.07048372]
[1773131007425,0.04309928,70973.0,70939.0,0.58919777]
[1773131007621,0.57433094,70963.0,70951.0,0.001]
[1773131007823,0.04309928,70960.0,70939.0,0.58919777]
[1773131008100,0.04309928,70956.0,70938.0,0.07048372]
[1773131008364,0.60433094,70953.0,70938.0,0.07048372]
[1773131008560,0.03,70947.0,70938.0,0.07048372]
[1773131008758,0.00144,70946.0,70938.0,0.07048372]
[1773131008972,0.00144,70946.0,70936.0,0.07410555]
[1773131008973,0.07309928,70944.0,70936.0,0.07410555]
[1773131009136,0.04309928,70939.0,70934.0,0.07048728]
[1773131009339,0.04309928,70935.0,70931.0,0.0707108]
[1773131009542,0.0400735,70935.0,70931.0,0.0707108]
[1773131010546,0.03144,70939.0,70931.0,0.0707108]
[1773131011096,0.03,70935.0,70927.0,0.0004399]
[1773131011267,0.03,70931.0,70925.0,0.00045]
[1773131011449,0.03,70928.0,70923.0,0.00022]
[1773131011645,0.03,70928.0,70922.0,0.07049929]
[1773131011646,0.07309928,70926.0,70922.0,0.07049929]
[1773131011966,0.11358336,70940.0,70922.0,0.07049929]
[1773131012188,0.07047544,70947.0,70923.0,0.03986924]
[1773131012388,0.04453928,70946.0,70924.0,0.58919777]
[1773131012636,0.03,70944.0,70924.0,0.58919777]
[1773131012821,0.03,70942.0,70924.0,0.58919777]
[1773131013221,0.00144,70941.0,70924.0,0.58919777]
[1773131013497,0.03,70942.0,70924.0,0.58919777]
[1773131013689,0.03,70936.0,70922.0,0.07049929]
[1773131014071,0.03,70936.0,70925.0,0.58049915]
[1773131014273,0.04309928,70945.0,70925.0,0.58049915]
[1773131014274,0.00144,70937.0,70927.0,0.58049915]
[1773131014673,0.00144,70937.0,70926.0,0.070496]
[1773131016160,0.03,70935.0,70926.0,0.070496]
[1773131016336,0.00144,70934.0,70926.0,0.58049915]
[1773131016536,0.03144,70935.0,70926.0,0.58049915]
[1773131017160,0.03,70934.0,70924.0,0.070496]
[1773131017560,0.07309928,70934.0,70924.0,0.070496]
[1773131018871,0.03,70933.0,70924.0,0.070496]
[1773131019865,0.03,70932.0,70924.0,0.070496]
[1773131020189,0.00144,70933.0,70924.0,0.070496]
[1773131020619,0.00144,70933.0,70925.0,0.62313998]
[1773131021135,0.00144,70941.0,70928.0,0.04264083]
[1773131021361,0.11396356,70952.0,70929.0,0.04264083]
[1773131021564,0.00144,70949.0,70935.0,0.62313998]
[1773131022497,0.03023,70950.0,70935.0,0.58049915]
[1773131022745,0.03023,70950.0,70936.0,0.62313998]
[1773131022923,0.03,70949.0,70937.0,0.07048507]
[1773131023126,0.03,70949.0,70928.0,0.001]
[1773131023127,0.59720928,70947.0,70933.0,0.07048876]
[1773131023332,0.03,70937.0,70929.0,0.07049233]
[1773131024263,0.03,70935.0,70927.0,0.07049501]
[1773131024416,0.03,70935.0,70923.0,0.07071835]
[1773131024617,0.00144,70938.0,70915.0,0.07072642]
[1773131024618,0.56720928,70930.0,70915.0,0.00022]
[1773131024819,0.15911955,70940.0,70908.0,0.04848083]
[1773131024820,0.03,70921.0,70908.0,0.00123]
[1773131025027,0.03,70919.0,70908.0,0.07174364]
[1773131025449,0.00144,70918.0,70908.0,0.07174364]
[1773131026004,0.56720928,70928.0,70908.0,0.07174364]
[1773131026005,0.03,70925.0,70908.0,0.07174364]
[1773131026142,0.00144,70924.0,70908.0,0.07174364]
[1773131026543,0.63770242,70929.0,70908.0,0.07174364]
[1773131026544,0.00048,70967.0,70908.0,0.07174364]
[1773131026750,0.00048,70967.0,70931.0,0.58049915]
[1773131026751,0.04349249,70960.0,70931.0,0.58049915]
[1773131026961,0.04349249,70960.0,70930.0,0.15911955]
[1773131026962,0.00144,70959.0,70936.0,0.07048607]
[1773131027166,0.03144,70959.0,70937.0,0.58049915]
[1773131027403,0.03,70957.0,70938.0,0.00144]
[1773131027610,0.59720928,70957.0,70938.0,0.00144]
[1773131027813,0.03,70953.0,70938.0,0.00144]
[1773131028017,0.59720928,70949.0,70938.0,0.00144]
[1773131028500,0.04349249,70948.0,70938.0,0.00144]
[1773131028717,0.59720928,70947.0,70936.0,0.07192607]
[1773131029192,0.03,70947.0,70936.0,0.07192607]
[1773131029497,0.03144,70947.0,70936.0,0.07192607]
[1773131029816,0.03,70946.0,70936.0,0.07192607]
[1773131029989,0.03,70946.0,70936.0,0.07292607]
[1773131030410,0.58369285,70943.0,70930.0,0.07049203]
[1773131030607,0.03,70936.0,70926.0,0.06574435]
[1773131030762,0.03,70930.0,70919.0,0.07050296]
[1773131030959,0.07047514,70949.0,70916.0,0.00144]
[1773131030960,0.03,70926.0,70917.0,0.06928085]
[1773131031185,0.00144,70925.0,70916.0,0.01879496]
[1773131031401,0.07349249,70924.0,70917.0,0.07050296]
[1773131031812,0.03,70924.0,70917.0,0.07050296]
[1773131032013,0.03,70918.0,70915.0,0.0707264]
[1773131032170,0.07349249,70916.0,70915.0,0.05171144]
[1773131032571,0.07349249,70916.0,70911.0,0.0705103]
[1773131032572,0.03,70916.0,70911.0,0.0705103]
[1773131032777,0.03,70916.0,70908.0,0.07174336]
[1773131032992,0.03,70912.0,70898.0,0.07052371]
[1773131033191,0.03,70908.0,70900.0,0.07075115]
[1773131034089,0.00144,70907.0,70900.0,0.07075115]
[1773131034507,0.03,70905.0,70900.0,0.07075115]
[1773131035000,0.03,70905.0,70895.0,0.07052683]
[1773131035197,0.03,70903.0,70895.0,0.07052683]
[1773131035437,0.03,70903.0,70895.0,0.05989358]
[1773131035636,0.03,70901.0,70888.0,0.07053379]
[1773131035839,0.03,70897.0,70888.0,0.0671677]
[1773131038880,0.03,70896.0,70888.0,0.06383527]